Cogmind - Beta 17.1 @@@ ROGUE MODE // 2026.09.24 @ 05:48:59 Player: Clog Result: Core destroyed Performance ------------- Evolutions (7) 3500 Regions Visited (22) 4400 Robots Destroyed (326) 1630 Value Destroyed (14981) 14981 Prototype IDs (50) 1000 Alien Tech Used (1) 200 Bonus (7549) 7549 TOTAL SCORE: 33260 Bonus ------- Triggered High Security 500 High Alert Combat Kills 2586 Follower Combat Kills 1593 Entered Garrisons 800 Entered DSFs 500 Aligned with FarCom 300 Acquired ECA 300 Met Warlord at Base 500 MAIN.C Attacked Warlord 500 Warlord Defense Kills 518 Friendly Fire -548 Cogmind --------- Core Integrity 0/1300 Matter 170/300 Energy 79/100 System Corruption 10% Temperature Cool (0) Movement Core (50) Location -3/Garrison Parts ------- > --- POWER (2) -------- (None) > --- PROPULSION (6) --- Biometal Medium Treads > --- UTILITY (8) ------ Improved System Shield > --- WEAPON (5) ------- (None) > --- INVENTORY (5) ---- Fission Core Matter Compressor (250) Advanced Datajack Peak State ------------ > --- POWER ------------ Backup Power III Light Particle Reactor > --- PROPULSION ------- Medium Treads Improved Heavy Treads Improved Heavy Siege Treads > --- UTILITY ---------- High-capacity Storage Unit 0b10 Alert Chip Experimental Core Analyzer Weapon Cycler Improved Phase Shifter Advanced Force Field > --- WEAPON ----------- Nova Cannon Vortex Driver Gauss Rifle Helical Railgun > --- INVENTORY -------- Reinforced Deuterium Engine Matter Compressor High-powered Tractor Beam Wardrone Bay Plasma Storm Vortex Cannon Vortex Cannon Vortex Driver Phasing Sabre [Rating: 129] Favorites ----------- Power Reinforced Deuterium Engine Engine Reinforced Deuterium Engine Power Core Micro Fission Core Reactor Light Particle Reactor Propulsion Light Treads Treads Light Treads Leg Flexi-carbon Leg Wheel Centrium Wheel Hover Unit Gravmag System Flight Unit Nuclear Pulse Array Utility High-capacity Storage Unit Device Improved Cooling System Storage High-capacity Storage Unit Processor Experimental Core Analyzer Hackware Hacking Suite Protection Improved Light Armor Plating Weapon Gauss Rifle Energy Gun Heavy Laser Energy Cannon Particle Cannon Ballistic Gun Gauss Rifle Ballistic Cannon Hypervelocity Gauss Cannon Launcher Heavy Rocket Launcher Special Weapon Welding Torch Impact Weapon Powered Hammer Slashing Weapon Phasing Sabre Piercing Weapon Heavy Pick Special Melee Weapon Datajack Build | -11 -10 -10 -10 -9 -8 -8 -8 -7 -7 -6 -6 -6 -6 -5 -5 -5 -5 -4 -4 -4 -3 -3 ------- Run | Yrd Mat Min Exi Min Mat Gar Mat Fac DSF Fac Gar Fac Gar Fac Upp Upp War Pro Fac Ext Res Gar Slots Evolved 14 | . . . . . 4 . . 2 . 2 . . . 2 . . . . 2 . 2 . Power 1 | . . . . . . . . . . . . . . 1 . . . . . . . . Propulsion 4 | . . . . . 2 . . . . 1 . . . . . . . . 1 . . . Utility 6 | . . . . . 2 . . 1 . . . . . 1 . . . . . . 2 . Weapon 3 | . . . . . . . . 1 . 1 . . . . . . . . 1 . . . Parts Attached 260 | . 23 . 1 1 31 7 12 3 6 9 53 . 2 2 3 5 9 2 47 33 11 . Power 22 | . 2 . . . 3 . 1 . 1 1 5 . . . . 1 . 2 4 2 . . Engine 13 | . 2 . . . 3 . . . 1 1 3 . . . . . . 2 1 . . . Core 6 | . . . . . . . 1 . . . 2 . . . . . . . 2 1 . . Reactor 3 | . . . . . . . . . . . . . . . . 1 . . 1 1 . . Propulsion 85 | . 6 . . . 11 3 7 . 2 4 11 . . 1 . 1 1 . 19 13 6 . Treads 50 | . 4 . . . 10 3 7 . 2 4 10 . . 1 . 1 1 . 5 . 2 . Leg 21 | . 2 . . . . . . . . . . . . . . . . . 6 13 . . Wheel 5 | . . . . . . . . . . . . . . . . . . . 5 . . . Hover 6 | . . . . . 1 . . . . . 1 . . . . . . . . . 4 . Flight 3 | . . . . . . . . . . . . . . . . . . . 3 . . . Utility 62 | . 3 . . 1 6 1 3 1 2 2 12 . 1 . 2 1 5 . 12 6 4 . Device 27 | . 2 . . 1 1 . 1 . 1 1 4 . 1 . 1 1 4 . 5 2 2 . Storage 6 | . 1 . . . 1 . 1 . . . . . . . . . . . 3 . . . Processor 6 | . . . . . 2 . . . . . 1 . . . 1 . . . 2 . . . Hackware 5 | . . . . . 2 . . . . . . . . . . . . . . 2 1 . Protection 18 | . . . . . . 1 1 1 1 1 7 . . . . . 1 . 2 2 1 . Artifact . | . . . . . . . . . . . . . . . . . . . . . . . Weapon 91 | . 12 . 1 . 11 3 1 2 1 2 25 . 1 1 1 2 3 . 12 12 1 . Energy Gun 18 | . 5 . . . 1 . . . . . 4 . . . . 1 . . 4 3 . . Energy Cannon 18 | . 3 . . . 2 . . . . 1 5 . . . . 1 2 . 2 1 1 . Ballistic Gun 34 | . 2 . . . 6 . 1 2 1 1 12 . . 1 1 . . . 4 3 . . Ballistic Cannon 3 | . . . . . . . . . . . 1 . . . . . . . . 2 . . Launcher 6 | . 2 . . . 1 1 . . . . . . 1 . . . 1 . . . . . Special Weapon 1 | . . . . . . . . . . . . . . . . . . . . 1 . . Impact Weapon 2 | . . . . . . 1 . . . . 1 . . . . . . . . . . . Slashing Weapon 5 | . . . . . 1 1 . . . . 1 . . . . . . . 1 1 . . Piercing Weapon 1 | . . . . . . . . . . . . . . . . . . . 1 . . . Special Melee Weapon 3 | . . . 1 . . . . . . . 1 . . . . . . . . 1 . . Unidentified Prototypes 14 | . . . . . 4 . . 1 . 1 2 . . . . . 2 1 3 . . . Corrupted Parts 5 | . . . . . . . . . . . 5 . . . . . . . . . . . System Corruption 34 | . . . . . . . . . . . 34 . . . . . . . . . . . Parts Lost 132 | . 5 1 . . 3 1 8 . . 14 26 . . . 5 11 . 3 31 15 7 2 Power 13 | . 1 . . . 1 . 1 . . 1 1 . . . . 1 . 1 5 1 . . Propulsion 50 | . 2 . . . 1 . 5 . . 5 9 . . . 1 2 . 1 12 7 5 . Utility 25 | . 1 . . . 1 1 1 . . 2 7 . . . 2 2 . . 3 2 2 1 Weapon 44 | . 1 1 . . . . 1 . . 6 9 . . . 2 6 . 1 11 5 . 1 Highest Loss Streak 13 | . 3 1 . . 2 1 7 . . 10 13 . . . 5 7 . 1 12 7 5 2 To Critical Strikes 3 | . . . . . . . . . . . . . . . . . . . 1 2 . . Average Backups 14 | 6 11 15 15 15 19 19 19 19 19 17 18 18 18 17 16 13 9 8 8 9 9 4 Power 1 | 1 1 1 1 1 1 1 . 1 1 . 1 2 2 2 2 1 1 . . 1 1 1 Propulsion 2 | 4 3 2 2 2 4 5 5 6 4 2 . 2 2 1 1 1 . . . 1 . . Utility 3 | . 1 3 3 4 4 4 5 3 4 5 5 4 4 4 4 3 3 3 2 2 5 1 Weapon 6 | 1 5 8 8 7 8 7 7 7 7 7 10 9 9 9 7 5 4 5 4 3 2 . Tool/Special . | . . . . . . . . . . . . . . . . . . . . . . . Unused Backups 53 | 6 10 . . . 9 1 3 . 3 1 7 . . . . . 2 . 4 2 1 4 Power 7 | 1 1 . . . 1 . . . . . 2 . . . . . . . . 1 . 1 Propulsion 15 | 2 4 . . . 2 . . . 3 1 1 . . . . . 1 . . 1 . . Utility 11 | 1 . . . . . 1 2 . . . 2 . . . . . 1 . 2 . . 2 Weapon 19 | 2 5 . . . 6 . 1 . . . 2 . . . . . . . 2 . 1 . Tool/Special 1 | . . . . . . . . . . . . . . . . . . . . . . 1 Average Slot Usage (%) 82 | . 98 76 77 91 94 99 95 85 93 82 83 86 86 76 72 71 73 81 62 86 43 15 Engine 6 | . 13 14 14 14 8 9 5 . 4 5 5 6 6 5 5 1 3 7 2 . . . Treads 19 | . 20 28 28 28 34 36 32 30 30 29 21 20 20 17 16 11 11 15 4 4 . 3 Leg 3 | . 6 . . . . . . . . . . . . . . . . . 7 20 1 . Device 8 | . 13 . . 5 8 . 3 7 6 6 10 6 6 5 10 15 11 17 10 5 . . Storage 7 | . 14 14 14 14 9 9 9 7 7 6 6 6 6 5 5 5 5 5 4 5 3 . Processor 6 | . . . . . 7 9 9 7 1 . 4 6 6 5 7 11 11 11 11 9 2 . Hackware 2 | . . . . . 8 14 5 . . . . . . . . . . . . 4 7 8 Protection 3 | . . . . . . 3 8 7 15 10 8 13 13 11 . . 1 . . 4 2 . Energy Gun 2 | . 2 19 . . . . . . . . 4 . . . . 4 3 . 1 3 1 . Energy Cannon 3 | . 9 . 6 28 3 . . . . . 6 . . . . 3 2 5 2 1 . . Ballistic Gun 12 | . 15 . . . 14 16 15 15 22 21 9 26 25 22 22 9 8 11 5 8 . . Peak Build Rating 129 | 6 11 10 8 10 32 33 33 36 46 50 102 82 82 82 83 95 129 121 120 107 82 25 Average Rating 60 | 6 9 8 7 9 25 32 31 30 42 44 69 82 81 79 78 86 104 109 92 88 55 20 On Entrance 47 | 6 6 10 8 8 10 32 33 30 36 46 25 82 82 82 77 83 81 121 95 64 64 20 Avg Prop Armor Cover (%) 14 | . . . . . . . . . . 9 2 . . . . . . . 18 16 9 33 Naked Turns . | . . . . . . . . . . . . . . . . . . . . . . . Heaviest Build 115 | 13 34 31 29 33 58 67 67 67 110 113 108 79 79 85 72 80 115 89 106 79 43 3 Greatest Support 180 | 20 40 40 40 40 80 80 83 83 83 111 180 170 170 170 170 170 178 178 103 121 33 35 Greatest Overweight (x) 7 | . . . . . . . 3 . 1 1 6 . . . . . . . 7 2 2 . Average Overweight (x) . | . . . . . . . . . . . . . . . . . . . . . . . Largest Inventory Capacity 20 | 8 15 15 15 15 20 20 20 20 20 20 20 20 20 20 20 20 20 20 20 10 10 5 Average Capacity 17 | 8 12 15 15 15 19 20 20 20 20 20 20 20 20 20 20 20 20 20 16 10 9 5 Most Carried 20 | 8 15 15 15 15 20 20 20 20 20 20 20 20 20 20 20 18 20 20 20 10 10 5 Average Carried 16 | 6 11 15 14 15 19 19 19 19 19 18 19 20 20 19 17 13 16 19 15 9 9 4 Final Capacity 20 | 8 15 15 15 15 20 20 20 20 20 20 20 20 20 20 20 20 20 20 10 10 5 5 Final Carried 20 | 8 15 15 15 15 20 20 19 18 20 17 20 20 20 20 17 10 20 20 10 9 5 3 Class Distribution -------------------- 32% | Scavenger-Tank 31% | Scavenger-Mutant 15% | Mutant 15% | Scavenger-Skirmisher Dominant Class ---------------- Mutant | -10/Materials Mutant | -10/Mines Mutant | -10/Exiles Mutant | -9/Mines Scavenger-Mutant | -8/Materials Scavenger-Mutant | -8/Garrison Scavenger-Mutant | -8/Materials Scavenger-Mutant | -7/Factory Scavenger-Tank | -7/DSF Scavenger-Tank | -6/Factory Scavenger-Tank | -6/Garrison Scavenger-Tank | -6/Factory Scavenger-Tank | -6/Garrison Scavenger-Tank | -5/Factory Scavenger-Tank | -5/Upper Caves Scavenger-Tank | -5/Upper Caves Commander-Tank | -5/Warlord Scavenger-Tank | -4/Proximity Caves Scavenger-Skirmisher | -4/Factory Scavenger-Skirmisher | -4/Extension Scavenger-Mutant | -3/Research Hacker-Mutant | -3/Garrison Resources | -11 -10 -10 -10 -9 -8 -8 -8 -7 -7 -6 -6 -6 -6 -5 -5 -5 -5 -4 -4 -4 -3 -3 ----------- Run | Yrd Mat Min Exi Min Mat Gar Mat Fac DSF Fac Gar Fac Gar Fac Upp Upp War Pro Fac Ext Res Gar Matter Collected 11132 | 215 434 105 . 55 1245 721 653 163 290 629 2322 64 251 267 263 472 177 433 977 1343 53 . Remotely 1866 | . . . . . . . 391 163 126 308 423 . . 170 209 76 . . . . . . Salvage Created 14029 | 58 518 124 . . 1832 773 561 . 253 578 3667 20 386 371 212 407 186 658 2625 747 53 . Parts 680 | 7 50 6 . . 94 57 27 . 25 22 165 2 18 20 4 21 7 28 85 38 4 . Haulers Intercepted 13 | . 2 . . . 5 . 2 . . . . . . . . . . . 4 . . . Recyclers Shooed 14 | 1 1 . . . 3 . 2 . . . . . . . . . . . 5 2 . . Parts Field Recycled . | . . . . . . . . . . . . . . . . . . . . . . . Retrieved Matter . | . . . . . . . . . . . . . . . . . . . . . . . Parts Self-Destructed 60 | . . . . . . . . . . . . . . . 14 20 . 26 . . . . Prevented . | . . . . . . . . . . . . . . . . . . . . . . . Parts Restored . | . . . . . . . . . . . . . . . . . . . . . . . Kills | -11 -10 -10 -10 -9 -8 -8 -8 -7 -7 -6 -6 -6 -6 -5 -5 -5 -5 -4 -4 -4 -3 -3 ------- Run | Yrd Mat Min Exi Min Mat Gar Mat Fac DSF Fac Gar Fac Gar Fac Upp Upp War Pro Fac Ext Res Gar Combat Hostiles Destroyed 256 | . 18 4 . . 21 24 13 . 8 10 62 . 10 13 5 19 4 13 24 8 . . Melee 3 | . . . . . . . . . . . . . . . . . . . 1 2 . . Guns 120 | . 11 3 . . 16 15 4 . 4 10 27 . 3 4 4 6 2 2 4 5 . . Cannons 46 | . . . . . 2 . . . . . 15 . . . . 5 2 9 12 1 . . AOE 82 | . 7 1 . . 2 9 8 . 4 . 17 . 7 9 1 8 . 2 7 . . . Classes Destroyed 24 | 1 5 . . . 7 2 1 . 2 . 3 . . 1 . . 1 1 . . . . Worker 7 | . . . . . 1 . . . . . . 1 . . . . . . 2 2 1 . Builder 2 | . . . . . . . . . . . . . . 1 . . . . 1 . . . Tunneler 3 | 2 . . . . . . . . . . . . . . . . . . . 1 . . Hauler 13 | . 2 . . . 5 . 2 . . . . . . . . . . . 4 . . . Recycler 20 | . . . . . 6 . 3 . . . . . . 1 . . . . 9 1 . . Mechanic 2 | . . . . . 1 . . . . . . . . . . . . . 1 . . . Operator 5 | . 2 . . . 1 . . . . 1 . . . . . . . . . . 1 . Drone 2 | . . . . . . . . . . . . . . . . . . 2 . . . . Watcher 13 | . 3 . . . 4 . 1 . . . . . . 2 . . . . 2 1 . . Swarmer 76 | . 9 2 . . 4 7 . . 4 . 18 . 4 7 . 14 . 1 5 1 . . Cutter 5 | . . . . . . 1 . . . . 4 . . . . . . . . . . . Saboteur 1 | . . . . . . . . . . . 1 . . . . . . . . . . . Grunt 81 | . 9 2 . . 7 6 7 . 2 6 12 . 7 6 5 1 . 4 3 4 . . Brawler 3 | . . . . . 1 . . . . . . . . . . 1 . 1 . . . . Duelist 3 | . . . . . 1 . 1 . . . . . . . . 1 . . . . . . Protector 1 | . . . . . . . 1 . . . . . . . . . . . . . . . Sentry 40 | . . . . . 7 6 3 . . 4 14 . . . . 1 . 1 1 3 . . Demolisher 3 | . . . . . . . . . . . . . . . . . 3 . . . . . Specialist 2 | . . . . . . . . . 1 . . . 1 . . . . . . . . . Hunter 15 | . . . . . 1 . 1 . . . 6 . . . . 1 . 2 4 . . . Programmer 21 | . . . . . . 4 . . . . 3 . . . . . 1 2 11 . . . Heavy 1 | . . . . . . . . . 1 . . . . . . . . . . . . . Behemoth 2 | . . . . . . . . . . . 2 . . . . . . . . . . . Executioner 2 | . . . . . . . . . . . 2 . . . . . . . . . . . Thug 1 | . . . . . 1 . . . . . . . . . . . . . . . . . Butcher 1 | . . . . . . . . . . . 1 . . . . . . . . . . . Infiltrator 1 | . . . . . . . . . . . . . . . 1 . . . . . . . Best Kill Streak 12 | 1 5 2 . . 6 4 10 . 4 3 12 1 8 8 5 5 2 4 6 3 1 . Combat Bots Only 12 | . 4 2 . . 4 4 8 . 4 3 12 . 8 6 5 5 2 4 5 3 . . Max Kills in Single Turn 5 | 1 3 1 . . 4 2 3 . 2 1 4 1 4 5 1 3 1 1 5 1 1 . Gunslinging 1 | . . . . . 1 . 1 . . . 1 . . . . . . . . . . . Exploded 5 | . 3 1 . . 2 2 3 . 2 . 4 . 4 4 1 3 . 1 5 . . . Melee 1 | . . . . . . . . . . . . . . . . . . . 1 1 . . Uniques/NPCs Destroyed . | . . . . . . . . . . . . . . . . . . . . . . . Combat | -11 -10 -10 -10 -9 -8 -8 -8 -7 -7 -6 -6 -6 -6 -5 -5 -5 -5 -4 -4 -4 -3 -3 -------- Run | Yrd Mat Min Exi Min Mat Gar Mat Fac DSF Fac Gar Fac Gar Fac Upp Upp War Pro Fac Ext Res Gar Hostile Shots Fired 2374 | . 90 11 . . 78 88 139 . 26 327 659 . 10 12 33 157 5 94 356 134 74 81 Missed 737 | . 21 3 . . 19 25 34 . 6 103 233 . 4 2 4 31 1 23 138 30 31 29 Hits 1637 | . 69 8 . . 59 63 105 . 20 224 426 . 6 10 29 126 4 71 218 104 43 52 Melee 22 | . . . . . 5 . 12 . . 2 3 . . . . . . . . . . . Projectile 1615 | . 69 8 . . 54 63 93 . 20 222 423 . 6 10 29 126 4 71 218 104 43 52 AOE 12 | . 1 . . . . . . . . 4 1 . . . . . 5 . 1 . . . Critical Strikes 67 | . . . . . 3 3 9 . . 4 10 . 1 . 3 3 . 1 17 9 3 1 Damage Taken 27573 | . 910 158 . . 1022 965 1862 . 368 2816 5203 23 206 249 590 2207 270 1304 4460 2757 1019 1184 Core 3906 | . 110 48 . . 96 138 295 . . 167 412 . . . 57 136 62 28 788 269 300 1000 Absorbed by Shields 157 | . . . . . . . . . . . 82 . . . . 62 13 . . . . . Reduced by Siege Mode 755 | . . . . . . . . . . . 131 . 21 . 15 238 . 249 101 . . . Redirected to Shielding 44 | . . . . . . . . . 44 . . . . . . . . . . . . . Ignored by Resistances 1006 | . . . . . . . . . 45 192 769 . . . . . . . . . . . Regen/Repaired (Parts) 774 | . . . . . . . . . . . . . . 489 . . 285 . . . . . Core Remaining (%) 49 | 100 . . . 36 . . 3 . 100 . . . 31 . . . . 71 . 8 . . Volleys Fired 853 | 6 68 7 . . 117 81 54 . 14 48 205 3 11 12 9 35 7 33 83 54 6 . Largest 5 | 2 2 2 . . 2 2 2 . 3 4 4 4 4 4 3 4 4 4 4 5 1 . Hottest 314 | 60 128 90 . . 128 56 100 . 71 96 314 112 112 113 79 196 279 218 300 223 90 . Shots Fired 1839 | 12 125 12 . . 228 140 91 . 38 113 490 12 26 33 21 77 24 99 145 147 6 . Gun 1426 | 12 110 12 . . 186 129 77 . 36 113 330 12 21 28 18 52 14 62 101 113 . . Cannon 345 | . 8 . . . 41 3 6 . . . 141 . . 1 . 18 10 33 44 34 6 . Launcher 68 | . 7 . . . 1 8 8 . 2 . 19 . 5 4 3 7 . 4 . . . . Special . | . . . . . . . . . . . . . . . . . . . . . . . Kinetic 1284 | 6 104 . . . 186 129 73 . 36 113 247 12 21 28 18 35 14 62 71 129 . . Thermal 395 | 6 8 . . . 36 . 4 . . . 208 . . 1 . 34 7 33 34 18 6 . Explosive 68 | . 7 . . . 1 8 8 . 2 . 19 . 5 4 3 7 . 4 . . . . Electromagnetic 49 | . 6 12 . . 5 3 6 . . . 16 . . . . 1 . . . . . . Entropic 43 | . . . . . . . . . . . . . . . . . 3 . 40 . . . Robot Hit Streak 20 | 3 8 6 . . 10 7 7 . 19 14 18 4 3 5 17 20 5 7 16 8 . . Robot Miss Streak 10 | 7 2 4 . . 4 6 5 . 1 6 10 3 2 4 1 2 2 6 10 8 4 . Penetration Max 1 | . . . . . . . . . . . 1 . . . . . . 1 1 1 . . Secondary Targets 26 | . 1 . . . 2 2 3 . 1 4 5 . . 2 3 2 . . . 1 . . Max Gunslinging Chain 1 | . 1 . . . 1 1 1 . 1 1 1 . . 1 1 1 . . . 1 . . Autonomous 13 | . . . . . . . . . . . 13 . . . . . . . . . . . Shots Hit Robots 1192 | 4 82 9 4 . 145 69 66 . 32 79 318 6 9 15 20 51 23 43 112 98 7 . Core Hits 665 | 2 39 6 . . 62 38 41 . 17 37 173 3 25 35 16 33 10 22 65 38 3 . Critical Kills 6 | . 1 . . . 1 . . . . . 1 . . . . . . . . 3 . . Critical Parts Destroyed 15 | . 1 . . . 1 . . . . . 8 . . . . . . . . 5 . . Critical Strikes 59 | . 2 . . . 2 . . . . . 12 . . . . 3 1 . 21 16 2 . Burn 7 | . . . . . . . . . . . 1 . . . . 3 . . 2 1 . . Meltdown 1 | . . . . . 1 . . . . . . . . . . . . . . . . . Destroy 25 | . 2 . . . 1 . . . . . 8 . . . . . . . . 14 . . Smash 1 | . . . . . . . . . . . 1 . . . . . . . . . . . Sever 2 | . . . . . . . . . . . 2 . . . . . . . . . . . Impale 7 | . . . . . . . . . . . . . . . . . . . 4 1 2 . Sunder 16 | . . . . . . . . . . . . . . . . . 1 . 15 . . . Melee Attacks 178 | . . . 4 . 1 22 15 . . 3 35 . . 1 . . 11 . 28 33 18 7 Thermal 2 | . . . . . . . . . . . . . . . . . . . 2 . . . Impact 36 | . . . . . . 14 15 . . 3 4 . . . . . . . . . . . Slashing 33 | . . . . . 1 8 . . . . 23 . . 1 . . . . . . . . Piercing 63 | . . . . . . . . . . . . . . . . . . . 26 12 18 7 Sneak Attacks 61 | . . . 4 . . . 4 . . . 8 . . . . . 11 . 10 22 2 . Combat Hostiles . | . . . . . . . . . . . . . . . . . . . . . . . Follow-up Attacks . | . . . . . . . . . . . . . . . . . . . . . . . Damage Inflicted 38563 | 44 1394 172 . 4 2863 2046 3029 . 810 1429 10142 110 1409 1684 786 2206 567 1681 5752 2118 299 18 Guns 16137 | 44 813 112 . . 2015 1246 767 . 447 1429 4234 110 161 307 329 665 205 579 1300 1374 . . Cannons 7353 | . 113 . . . 672 . 114 . . . 2271 . . . . 382 362 684 2299 456 . . Explosions 10615 | . 468 60 . . 176 800 1459 . 363 . 1521 . 1248 1377 457 1159 . 418 1109 . . . Melee 4395 | . . . . . . . 689 . . . 2116 . . . . . . . 1038 253 299 . Ramming 63 | . . . . 4 . . . . . . . . . . . . . . 6 35 . 18 Kinetic 14451 | 21 781 . . . 2015 1246 726 . 447 1429 3117 110 161 307 329 427 205 579 923 1628 . . Thermal 6951 | 23 113 60 . . 556 . 77 . . . 2958 . . . . 589 116 684 1573 202 . . Explosive 9410 | . 468 . . . 176 800 1423 . 363 . 1521 . 1248 1377 457 1159 . 418 . . . . Electromagnetic 835 | . 32 112 . . 116 . 114 . . . 430 . . . . 31 . . . . . . Impact 796 | . . . . . . . 689 . . . 107 . . . . . . . . . . . Slashing 2009 | . . . . . . . . . . . 2009 . . . . . . . . . . . Piercing 1590 | . . . . . . . . . . . . . . . . . . . 1038 253 299 . Entropic 2458 | . . . . . . . . . . . . . . . . . 246 . 2212 . . . Highest Corruption 37 | . 1 1 1 1 . 3 3 . . . 37 37 37 . . . . 2 27 27 9 10 Average Corruption 16 | . 1 1 1 1 . 1 3 . . . 30 37 37 . . . . 1 15 27 7 9 Corruption Purged . | . . . . . . . . . . . . . . . . . . . . . . . Corruption Blocked . | . . . . . . . . . . . . . . . . . . . . . . . Effects 468 | . 6 2 3 . . 18 19 . . . 189 8 19 . . . . 4 94 98 2 6 Message Errors 108 | . 2 1 1 . . 5 3 . . . 44 1 3 . . . . 1 24 21 1 1 Matter Fused 121 | . 2 1 1 . . 6 5 . . . 43 1 6 . . . . 2 24 29 1 . Heat Flow Errors 50 | . . . . . . 1 3 . . . 23 1 5 . . . . . 12 5 . . Energy Discharges 45 | . 1 . . . . 2 1 . . . 17 1 2 . . . . 1 11 8 . 1 Parts Rejected 7 | . . . . . . . 1 . . . 5 . . . . . . . . 1 . . Parts Fused 4 | . . . . . . . 1 . . . 2 1 . . . . . . . . . . Data Loss (minor) 51 | . . . 1 . . 3 3 . . . 22 . . . . . . . 8 11 . 3 Data Loss (major) 16 | . . . . . . . . . . . 7 . . . . . . . 5 3 . 1 Misfires 23 | . 1 . . . . 1 2 . . . 11 1 1 . . . . . 2 4 . . Alerts 7 | . . . . . . . . . . . 1 . 1 . . . . . 1 4 . . Misdirections 9 | . . . . . . . . . . . . 1 . . . . . . 6 2 . . Weapon Failures 27 | . . . . . . . . . . . 14 1 1 . . . . . 1 10 . . Overload Shots . | . . . . . . . . . . . . . . . . . . . . . . . Overflow Damage 921 | . 50 . . . 9 42 90 . . . 169 . 14 36 . 184 . 8 319 . . . Projectiles 214 | . . . . . 9 . . . . . 25 . . . . 27 . . 153 . . . Explosions 415 | . 50 . . . . 42 45 . . . 32 . 14 36 . 157 . 8 31 . . . Melee 292 | . . . . . . . 45 . . . 112 . . . . . . . 135 . . . Knockbacks 4 | . . . . . . . 2 . . . 1 . . . . . . . . 1 . . Impact 2 | . . . . . . . 2 . . . . . . . . . . . . . . . Kinetic 2 | . . . . . . . . . . . 1 . . . . . . . . 1 . . Secondary . | . . . . . . . . . . . . . . . . . . . . . . . Self-Inflicted Damage 829 | . . 79 . . . 30 143 . . . 128 . 134 . 41 146 . . 110 . . 18 Shots 26 | . . 2 . . . 1 6 . . . 5 . 2 . 3 2 . . 5 . . . Rammed 3 | . 1 . . 1 . . . . . . . . . . . . . . 1 . . . Targets Rammed 5 | . 1 . . 1 . . . . . . . . . . . . . . 1 2 . . Kicked 2 | . . . . . . . . . . . . . . . . . . . . 2 . . Crushed . | . . . . . . . . . . . . . . . . . . . . . . . Highest Temperature 727 | . 306 116 . . 192 268 354 . 77 528 348 171 231 6 7 87 421 497 432 727 84 23 Average Temperature 118 | . 92 54 . . 30 35 114 . 30 270 90 103 103 4 7 45 147 197 121 161 30 23 Received Heat Transfer 5277 | . 324 24 . . 414 288 558 . 63 1056 982 . 45 90 297 81 . 87 102 695 9 162 Effects 60 | . 2 . . . . 3 2 . . 19 . . . . . . 2 13 5 14 . . Shutdowns 12 | . . . . . . . 1 . . 2 . . . . . . 2 2 1 4 . . Energy Bleed 5 | . . . . . . . . . . 4 . . . . . . . 1 . . . . Interference 31 | . 2 . . . . 3 . . . 8 . . . . . . . 8 4 6 . . Matter Decay 5 | . . . . . . . 1 . . 1 . . . . . . . 1 . 2 . . Short Circuit 3 | . . . . . . . . . . 2 . . . . . . . 1 . . . . Damage (minor) 2 | . . . . . . . . . . 2 . . . . . . . . . . . . Damage (major) 2 | . . . . . . . . . . . . . . . . . . . . 2 . . Siege Activations 22 | . . . . . . . . . . . 5 . 4 . 1 5 . 3 4 . . . Total Turns 354 | . . . . . . . . . . . 92 . 50 . 21 82 . 58 51 . . . Longest Duration 58 | . . . . . . . . . . . 38 . 29 . 21 58 . 37 18 . . . Martial Activations . | . . . . . . . . . . . . . . . . . . . . . . . Shielding Activations . | . . . . . . . . . . . . . . . . . . . . . . . Robots Disrupted . | . . . . . . . . . . . . . . . . . . . . . . . Combat Hostiles . | . . . . . . . . . . . . . . . . . . . . . . . Robots Corrupted 5 | . . . . . 1 . 1 . . . 3 . . . . . . . . . . . Combat Hostiles 5 | . . . . . 1 . 1 . . . 3 . . . . . . . . . . . Parts Fried 6 | . . . . . 1 . 1 . . . 4 . . . . . . . . . . . Impact Corruptions 3 | . . . . . . . 2 . . . 1 . . . . . . . . . . . Robots Melted 1 | . . . . . 1 . . . . . . . . . . . . . . . . . Combat Hostiles . | . . . . . . . . . . . . . . . . . . . . . . . Parts Melted 30 | . . . . . 1 . . . . . 22 . . . . . 1 1 5 . . . Heat Transferred 11327 | 50 222 50 . . 1073 . 74 . . . 4950 . . . . 1290 92 629 2514 383 . . Parts Sabotaged 7 | . . . . . . . . . . . 7 . . . . . . . . . . . Parts Stolen . | . . . . . . . . . . . . . . . . . . . . . . . Parts Stripped . | . . . . . . . . . . . . . . . . . . . . . . . Power Chain Reactions 2 | . . 1 . . . . 1 . . . . . . . . . . . . . . . Alert | -11 -10 -10 -10 -9 -8 -8 -8 -7 -7 -6 -6 -6 -6 -5 -5 -5 -5 -4 -4 -4 -3 -3 ------- Run | Yrd Mat Min Exi Min Mat Gar Mat Fac DSF Fac Gar Fac Gar Fac Upp Upp War Pro Fac Ext Res Gar Maximum Alert Level 5 | . . . . . 1 4 2 1 1 . 5 5 5 4 . . . . 1 1 . . Low Security (%) 54 | 100 100 100 . 100 95 6 . . 50 100 10 . . . . . . . 64 98 100 100 Level 1 10 | . . . . . 4 17 . 100 49 . 6 . . . . . . . 35 1 . . Level 2 10 | . . . . . . 30 100 . . . 11 . . . . . . . . . . . Level 3 9 | . . . . . . 38 . . . . 18 . . 51 . . . . . . . . Level 4 4 | . . . . . . 7 . . . . 11 . 15 48 . . . . . . . . Level 5 10 | . . . . . . . . . . . 41 76 84 . . . . . . . . . High Security . | . . . . . . . . . . . . 24 . . . . . . . . . . Max Security . | . . . . . . . . . . . . . . . . . . . . . . . Sterilizations 1 | . . . . . . . . . 1 . . . . . . . . . . . . . Peak Influence 3228 | 5 190 164 . . 262 1246 630 254 367 197 3228 1834 1976 1511 . . . . 362 214 41 41 Initial 1694 | . 3 31 . . . 47 607 254 153 192 37 1694 1287 1037 . . . . 150 74 26 . Average 520 | 1 59 108 . . 90 653 543 234 243 101 1430 1723 1803 1169 . . . . 181 59 7 21 Influence Increases 11659 | 10 543 193 . . 811 1209 426 5 214 295 3531 205 709 732 110 336 121 208 1140 692 128 41 Destroy 0b10 Robot/C 5612 | . 360 120 . . 500 480 240 . 160 200 1320 80 400 380 100 304 80 176 396 316 . . Destroy 0b10 Robot/NC 397 | 10 35 . . . 90 . 35 . . 5 40 5 . 40 . . . 8 79 40 10 . Destroy Leader 802 | . 70 20 . . 148 10 76 . 20 60 60 30 30 68 10 32 . 24 102 42 . . Allied During Kill 551 | . . 6 . . 21 . . . . . 53 72 177 115 . . 17 . . 90 . . Successful Hack 176 | . 22 . . . 11 12 4 5 . 14 14 11 . . . . . . 16 34 21 12 Select Force Hacks 30 | . 30 . . . . . . . . . . . . . . . . . . . . . Disable Machine 378 | . . 30 . . 30 30 30 . 15 15 45 . 15 . . . . . 153 . . 15 Anti-Garrison Action 2250 | . . . . . . 550 . . . . 1700 . . . . . . . . . . . Destroy Structure 836 | . 26 17 . . 11 112 41 . 19 1 224 7 72 84 . . . . 148 38 22 14 Advance Influence 150 | . . . . . . . . . . . . . . . . . . . 150 . . . Partial Spotted 30 | . . . . . . 15 . . . . . . . . . . . . . . 15 . Lose Combat Pursuer 447 | . . . . . . . . . . . 75 . 15 45 . . 24 . 96 132 60 . Influence Decreases 11638 | 5 465 152 124 . 738 36 1111 347 66 609 356 1594 572 1205 1097 511 447 223 988 793 179 20 Entered New Map 5547 | . 2 52 124 . . 26 639 307 66 175 16 1534 552 939 557 99 341 15 . 78 25 . Time Decay 4404 | 5 413 90 . . 538 . 392 40 . 294 . 40 . 246 490 302 36 186 678 535 119 . Lost Part 1201 | . 50 10 . . 30 10 80 . . 140 260 . . . 50 110 . 22 310 74 35 20 Lost Ally 336 | . . . . . 20 . . . . . 80 20 20 20 . . 70 . . 106 . . Purge Threat 150 | . . . . . 150 . . . . . . . . . . . . . . . . . Squads Dispatched 35 | . 3 1 . . 1 . 3 . 1 9 . 1 . 2 . . . . 9 2 3 . Investigation 8 | . 1 . . . 1 . . . . . . . . 1 . . . . 3 1 1 . Extermination 8 | . . . . . . . . . . 1 . . . . . . . . 6 . 1 . Reinforcement 7 | . 2 . . . . . . . 1 1 . . . 1 . . . . . 1 1 . Assault 2 | . . 1 . . . . 1 . . . . . . . . . . . . . . . Garrison 10 | . . . . . . . 2 . . 7 . 1 . . . . . . . . . . Intercept . | . . . . . . . . . . . . . . . . . . . . . . . Searches Triggered . | . . . . . . . . . . . . . . . . . . . . . . . Construction Impeded 2 | . . . . . . . . . . . . . . 1 . . . . . 1 . . Haulers Reinforced 1 | . . . . . . . . . . 1 . . . . . . . . . . . . Active Scanning Responses . | . . . . . . . . . . . . . . . . . . . . . . . Cargo Convoy Interrupts . | . . . . . . . . . . . . . . . . . . . . . . . Stealth | -11 -10 -10 -10 -9 -8 -8 -8 -7 -7 -6 -6 -6 -6 -5 -5 -5 -5 -4 -4 -4 -3 -3 --------- Run | Yrd Mat Min Exi Min Mat Gar Mat Fac DSF Fac Gar Fac Gar Fac Upp Upp War Pro Fac Ext Res Gar Distress Signals 12 | . 1 . . . 3 . 2 . . 2 . . . . . . . . 1 2 1 . Communications Jammed . | . . . . . . . . . . . . . . . . . . . . . . . Distress Signals . | . . . . . . . . . . . . . . . . . . . . . . . Times Spotted 415 | . 27 6 . . 36 24 16 . 8 24 65 4 10 18 5 20 27 13 46 32 11 23 Peak Tracking Total 25 | . 5 3 . . 5 4 10 . 4 9 6 2 6 8 5 5 12 4 6 6 7 25 Tactical Retreats 20 | . . . . . . . . . . . 4 . 1 1 . . 2 . 4 6 2 . Traps | -11 -10 -10 -10 -9 -8 -8 -8 -7 -7 -6 -6 -6 -6 -5 -5 -5 -5 -4 -4 -4 -3 -3 ------- Run | Yrd Mat Min Exi Min Mat Gar Mat Fac DSF Fac Gar Fac Gar Fac Upp Upp War Pro Fac Ext Res Gar Traps Triggered 25 | . 2 . . . 2 2 . . . . 4 . . 1 . . . . 10 1 . 3 Indirectly . | . . . . . . . . . . . . . . . . . . . . . . . Trap Hack Attempts . | . . . . . . . . . . . . . . . . . . . . . . . Triggered . | . . . . . . . . . . . . . . . . . . . . . . . Disarmed . | . . . . . . . . . . . . . . . . . . . . . . . Reprogrammed . | . . . . . . . . . . . . . . . . . . . . . . . Reused . | . . . . . . . . . . . . . . . . . . . . . . . Traps Extracted . | . . . . . . . . . . . . . . . . . . . . . . . Installed . | . . . . . . . . . . . . . . . . . . . . . . . Triggered . | . . . . . . . . . . . . . . . . . . . . . . . Machines | -11 -10 -10 -10 -9 -8 -8 -8 -7 -7 -6 -6 -6 -6 -5 -5 -5 -5 -4 -4 -4 -3 -3 ---------- Run | Yrd Mat Min Exi Min Mat Gar Mat Fac DSF Fac Gar Fac Gar Fac Upp Upp War Pro Fac Ext Res Gar Machines Disabled 44 | . 1 2 . . 2 10 2 . 1 1 11 . 1 . . . . 1 11 . . 1 Max in Single Turn 6 | . 1 2 . . 1 2 1 . 1 1 1 . 1 . . . . 1 6 . . 1 Garrison Access 1 | . . . . . . . . . . . . . . . . . . . . . 1 . Garrison Relay 12 | . . . . . . 6 . . . . 6 . . . . . . . . . . . Phase Generator 1 | . . . . . . 1 . . . . . . . . . . . . . . . . Machines Repaired . | . . . . . . . . . . . . . . . . . . . . . . . Machines Dismantled . | . . . . . . . . . . . . . . . . . . . . . . . Machines Sabotaged . | . . . . . . . . . . . . . . . . . . . . . . . Overloaded Fab Kills . | . . . . . . . . . . . . . . . . . . . . . . . Hacking | -11 -10 -10 -10 -9 -8 -8 -8 -7 -7 -6 -6 -6 -6 -5 -5 -5 -5 -4 -4 -4 -3 -3 --------- Run | Yrd Mat Min Exi Min Mat Gar Mat Fac DSF Fac Gar Fac Gar Fac Upp Upp War Pro Fac Ext Res Gar Machines Accessed 58 | . 6 . 1 . 10 1 2 1 . 3 2 2 . 2 . . 3 1 9 9 5 1 Terminals 42 | . 5 . . . 9 1 2 1 . 1 2 1 . 1 . . . . 6 9 3 1 Fabricators 1 | . . . . . . . . . . . . . . . . . . . 1 . . . Repair Stations 1 | . . . . . . . . . . . . . . 1 . . . . . . . . Recycling Units 1 | . 1 . . . . . . . . . . . . . . . . . . . . . Scanalyzers 1 | . . . . . . . . . . 1 . . . . . . . . . . . . Garrison Access 7 | . . . . . 1 . . . . 1 . 1 . . . . . . 2 . 2 . Total Hacks 103 | . 7 . 1 . 19 1 3 1 . 5 5 3 . 4 . . 7 1 18 18 9 1 Successful 54 | . 6 . 1 . 10 1 1 1 . 1 1 2 . 3 . . 7 1 3 10 5 1 Failed 49 | . 1 . . . 9 . 2 . . 4 4 1 . 1 . . . . 15 8 4 . Catastrophic 19 | . . . . . 3 . 1 . . 2 2 . . 1 . . . . 7 1 2 . Database Lockouts . | . . . . . . . . . . . . . . . . . . . . . . . Manual 32 | . 7 . 1 . 12 . 1 . . . . . . . . . . . 6 4 1 . Terminals 77 | . 6 . . . 18 1 3 1 . 2 5 1 . 2 . . . . 12 18 7 1 Fabricators 1 | . . . . . . . . . . . . . . . . . . . 1 . . . Repair Stations 2 | . . . . . . . . . . . . . . 2 . . . . . . . . Recycling Units 1 | . 1 . . . . . . . . . . . . . . . . . . . . . Scanalyzers 2 | . . . . . . . . . . 2 . . . . . . . . . . . . Garrison Access 11 | . . . . . 1 . . . . 1 . 2 . . . . . . 5 . 2 . Terminal Hacks 33 | . . . 1 . 4 1 1 1 . . 1 1 . 1 . . 7 1 2 8 3 1 Record 11 | . . . . . 1 . . . . . . . . . . . 6 1 1 2 . . Part Schematic 1 | . . . . . . . . . . . . . . . . . . . . 1 . . Open Door 3 | . . . . . . . . . . . . . . . . . 1 . . 2 . . Open DSF 2 | . . . . . . . . 1 . . . 1 . . . . . . . . . . Branch Access Points 1 | . . . . . . . . . . . . . . 1 . . . . . . . . Emergency Access Points 2 | . . . . . . . . . . . 1 . . . . . . . . . . 1 Alert Level 1 | . . . . . . . . . . . . . . . . . . . . 1 . . Unreport Threat 1 | . . . . . 1 . . . . . . . . . . . . . . . . . Locate Traps 5 | . . . . . 1 . 1 . . . . . . . . . . . 1 . 2 . Garrison Status 1 | . . . . . 1 . . . . . . . . . . . . . . . . . Recall Reinforcements 1 | . . . . . . . . . . . . . . . . . . . . . 1 . Hauler Manifests 1 | . . . . . . . . . . . . . . . . . . . . 1 . . Zone Layout 1 | . . . . . . . . . . . . . . . . . . . . 1 . . Patrol Navigation 1 | . . . . . . 1 . . . . . . . . . . . . . . . . Proto ID Catalog 1 | . . . 1 . . . . . . . . . . . . . . . . . . . Fabricator Hacks 1 | . . . . . . . . . . . . . . . . . . . 1 . . . Network Status 1 | . . . . . . . . . . . . . . . . . . . 1 . . . Repair Station Hacks 2 | . . . . . . . . . . . . . . 2 . . . . . . . . Scan Component 1 | . . . . . . . . . . . . . . 1 . . . . . . . . Repair 1 | . . . . . . . . . . . . . . 1 . . . . . . . . Recycling Unit Hacks . | . . . . . . . . . . . . . . . . . . . . . . . Scanalyzer . | . . . . . . . . . . . . . . . . . . . . . . . Garrison Access Hacks 5 | . . . . . 1 . . . . 1 . 1 . . . . . . . . 2 . Unlock Access 4 | . . . . . 1 . . . . 1 . 1 . . . . . . . . 1 . Seal Access 1 | . . . . . . . . . . . . . . . . . . . . . 1 . Unauthorized Hacks 13 | . 6 . . . 5 . . . . . . . . . . . . . . 2 . . Terminals 12 | . 5 . . . 5 . . . . . . . . . . . . . . 2 . . Botnet 2 | . . . . . . . . . . . . . . . . . . . . 2 . . Skim 10 | . 5 . . . 5 . . . . . . . . . . . . . . . . . Fabricators . | . . . . . . . . . . . . . . . . . . . . . . . Repair Stations . | . . . . . . . . . . . . . . . . . . . . . . . Recycling Units 1 | . 1 . . . . . . . . . . . . . . . . . . . . . Tunnel 1 | . 1 . . . . . . . . . . . . . . . . . . . . . Scanalyzers . | . . . . . . . . . . . . . . . . . . . . . . . Garrison Access . | . . . . . . . . . . . . . . . . . . . . . . . Data Cores Recovered 2 | . . . . . 1 . . . . 1 . . . . . . . . . . . . Used . | . . . . . . . . . . . . . . . . . . . . . . . Hacking Detections 35 | . 2 . . . 6 . 2 1 . 2 2 1 . 1 . . . . 8 7 2 1 Full Trace Events 6 | . . . . . . . . . . . 2 . . . . . . . 2 1 1 . Feedback Events . | . . . . . . . . . . . . . . . . . . . . . . . Feedback Blocked . | . . . . . . . . . . . . . . . . . . . . . . . Robot Schematics Acquired . | . . . . . . . . . . . . . . . . . . . . . . . Robots Built . | . . . . . . . . . . . . . . . . . . . . . . . Authchips . | . . . . . . . . . . . . . . . . . . . . . . . Time . | . . . . . . . . . . . . . . . . . . . . . . . Total Robot Build Rating . | . . . . . . . . . . . . . . . . . . . . . . . Part Schematics Acquired 1 | . . . . . . . . . . . . . . . . . . . . 1 . . Parts Built . | . . . . . . . . . . . . . . . . . . . . . . . Authchips . | . . . . . . . . . . . . . . . . . . . . . . . Time . | . . . . . . . . . . . . . . . . . . . . . . . Total Part Build Rating . | . . . . . . . . . . . . . . . . . . . . . . . Part Studies Acquired . | . . . . . . . . . . . . . . . . . . . . . . . Parts Repaired 1 | . . . . . . . . . . . . . . 1 . . . . . . . . Time 62 | . . . . . . . . . . . . . . 62 . . . . . . . . Parts Recycled . | . . . . . . . . . . . . . . . . . . . . . . . Recycled Matter . | . . . . . . . . . . . . . . . . . . . . . . . Retrieved Matter . | . . . . . . . . . . . . . . . . . . . . . . . Retrieved Components . | . . . . . . . . . . . . . . . . . . . . . . . Parts Scanalyzed . | . . . . . . . . . . . . . . . . . . . . . . . Part Schematics Acquired . | . . . . . . . . . . . . . . . . . . . . . . . Parts Damaged . | . . . . . . . . . . . . . . . . . . . . . . . Bothacking | -11 -10 -10 -10 -9 -8 -8 -8 -7 -7 -6 -6 -6 -6 -5 -5 -5 -5 -4 -4 -4 -3 -3 ------------ Run | Yrd Mat Min Exi Min Mat Gar Mat Fac DSF Fac Gar Fac Gar Fac Upp Upp War Pro Fac Ext Res Gar Used RIF Installer . | . . . . . . . . . . . . . . . . . . . . . . . Robots Hacked 4 | . . . 4 . . . . . . . . . . . . . . . . . . . Non-combat 3 | . . . 3 . . . . . . . . . . . . . . . . . . . Combat 1 | . . . 1 . . . . . . . . . . . . . . . . . . . Robot Hacks Applied 4 | . . . 4 . . . . . . . . . . . . . . . . . . . parse_system 4 | . . . 4 . . . . . . . . . . . . . . . . . . . Relay Couplers Released 54 | . . . . . . 30 . . . . 20 . . 4 . . . . . . . . Machine Destruction 47 | . . . . . . 27 . . . . 20 . . . . . . . . . . . Programmers 7 | . . . . . . 3 . . . . . . . 4 . . . . . . . . Fabnet Peak Effective % . | . . . . . . . . . . . . . . . . . . . . . . . Robots Rewired 22 | . . . . . . . . . . . 10 . . . . . 5 . . 7 . . Allies Hacked . | . . . . . . . . . . . . . . . . . . . . . . . Hacks Repelled . | . . . . . . . . . . . . . . . . . . . . . . . Allies | -11 -10 -10 -10 -9 -8 -8 -8 -7 -7 -6 -6 -6 -6 -5 -5 -5 -5 -4 -4 -4 -3 -3 -------- Run | Yrd Mat Min Exi Min Mat Gar Mat Fac DSF Fac Gar Fac Gar Fac Upp Upp War Pro Fac Ext Res Gar Total Allies 29 | . . 2 . 2 . . . . . . 12 . . . . . 5 . . 8 . . Largest Group 7 | . . 2 2 3 3 . . . . . 7 7 6 2 1 . 5 . . 4 . . Highest-Rated Group 368 | . . 62 62 74 74 . . . . . 368 368 323 182 90 . 238 . . 199 . . Highest-Rated Ally 95 | . . 31 31 31 31 . . . . . 95 95 95 95 90 . 64 . . 51 . . Initial Warlord ECA Mod 29 | . . . . . . . 11 10 10 19 19 29 29 28 28 28 28 27 27 27 26 26 Total Orders 4 | . . . . . . . . . . . 2 . . . . . . . . 2 . . STAY 2 | . . . . . . . . . . . 1 . . . . . . . . 1 . . FOLLOW 2 | . . . . . . . . . . . 1 . . . . . . . . 1 . . Ally Attacks 274 | . . 9 . . 26 . . . . . 27 24 43 38 1 . 13 . . 93 . . Total Damage 7974 | . . 123 . . 339 . . . . . 785 574 1467 1120 50 . 766 . . 2750 . . Kills 52 | . . 2 . . 4 . . . . . 4 4 10 10 . . 2 . . 16 . . Allies Corrupted . | . . . . . . . . . . . . . . . . . . . . . . . Allies Melted . | . . . . . . . . . . . . . . . . . . . . . . . Intel | -11 -10 -10 -10 -9 -8 -8 -8 -7 -7 -6 -6 -6 -6 -5 -5 -5 -5 -4 -4 -4 -3 -3 ------- Run | Yrd Mat Min Exi Min Mat Gar Mat Fac DSF Fac Gar Fac Gar Fac Upp Upp War Pro Fac Ext Res Gar Active Infowar (turns) 3876 | . 2052 . . 99 1194 . . . . . . . . . . . . . 321 209 1 . IFF 1 | . . . . . . . . . . . . . . . . . . . . . 1 . Seismic 3345 | . 2052 . . 99 1194 . . . . . . . . . . . . . . . . . T.N.C. 1179 | . . . . . 649 . . . . . . . . . . . . . 321 209 . . Robot Analysis Total . | . . . . . . . . . . . . . . . . . . . . . . . Derelict Logs Recovered 2 | . . . . . . . . . . . . . . . 1 . . 1 . . . . Drone Launches . | . . . . . . . . . . . . . . . . . . . . . . . Drone Recoveries . | . . . . . . . . . . . . . . . . . . . . . . . Exploration | -11 -10 -10 -10 -9 -8 -8 -8 -7 -7 -6 -6 -6 -6 -5 -5 -5 -5 -4 -4 -4 -3 -3 ------------- Run | Yrd Mat Min Exi Min Mat Gar Mat Fac DSF Fac Gar Fac Gar Fac Upp Upp War Pro Fac Ext Res Gar Turns Passed 22606 | 57 2199 189 400 231 1989 1943 927 95 208 647 3602 125 332 523 1298 661 1174 990 2674 1744 460 138 Spaces Moved 11187 | 16 990 102 245 141 965 1031 294 57 71 213 1511 72 140 255 343 313 653 523 1576 1147 398 131 Core 192 | . . . . . . . . . . . . . . . . . . . . . 78 114 Treads 8384 | . 686 102 245 141 965 1031 294 57 71 213 1510 72 140 255 343 313 653 523 697 56 . 17 Legs 1200 | 16 304 . . . . . . . . . . . . . . . . . 186 694 . . Wheels 328 | . . . . . . . . . . . . . . . . . . . 14 275 39 . Hover 282 | . . . . . . . . . . . 1 . . . . . . . . . 281 . Flight 801 | . . . . . . . . . . . . . . . . . . . 679 122 . . Fastest Speed 40 | 120 120 160 160 160 160 162 160 160 160 160 160 160 160 160 160 160 166 160 40 110 50 50 Average Speed 151 | 120 147 160 160 160 160 162 170 160 220 228 171 160 160 160 160 162 169 163 134 120 67 62 Slowest Speed 420 | 120 160 160 160 160 162 162 400 160 245 245 420 160 160 160 160 170 170 166 277 260 130 145 Overloaded Moves . | . . . . . . . . . . . . . . . . . . . . . . . Propulsion Burnouts . | . . . . . . . . . . . . . . . . . . . . . . . Robots Hopped 11 | . . . . . . . . . . . . . . . . . . . 10 1 . . Potential Cave-ins 5 | . . . . . . . . . . . . . . . . . 3 . . . 2 . Cave-ins Triggered 1 | . . . . . . . . . . . . . . . . . . . . . 1 . Exploration Rate (%) 44 | 2 95 21 64 30 74 87 25 1 69 8 95 4 27 11 52 50 86 82 38 54 15 27 Regions Visited 22 Branch Regions 8 Pre-discovered Areas 3 | . 1 1 . . . . . . . . . . . . 1 . . . . . . . Known Exits Taken 9 | . . 1 . 1 1 . 1 1 . 1 . 1 . 1 . . . . . . 1 . Unknown Exits Taken 9 | 1 1 . 1 . . . . . . . . . . . 1 1 1 1 1 1 . . Scrap Searched 5 | . . . . 1 . . . . . . . . . . 1 1 . 2 . . . . Spaces Dug 32 | . . . . . . 6 . . . 1 3 . . 2 . . . 1 3 1 13 2 Terrain Destroyed 839 | . 25 17 . . 6 128 45 . 24 1 78 5 79 50 24 150 6 80 75 30 14 2 Melee 22 | . . . . . . 6 . . . 1 1 . . 1 . . . . 2 1 8 2 Projectile 113 | . . . . . . . 2 . . . 6 5 1 1 . 9 6 34 14 29 6 . AOE 703 | . 25 17 . . 6 122 43 . 24 . 70 . 78 48 24 141 . 46 59 . . . Terrain Rammed 1 | . . . . . . . . . . . . . . . . . . . . . . 1 Walls Destroyed . | . . . . . . . . . . . . . . . . . . . . . . . Machines Disabled . | . . . . . . . . . . . . . . . . . . . . . . . Actions | -11 -10 -10 -10 -9 -8 -8 -8 -7 -7 -6 -6 -6 -6 -5 -5 -5 -5 -4 -4 -4 -3 -3 --------- Run | Yrd Mat Min Exi Min Mat Gar Mat Fac DSF Fac Gar Fac Gar Fac Upp Upp War Pro Fac Ext Res Gar Total 15300 | 42 1612 116 251 145 1264 1173 630 60 105 304 2121 75 230 346 1077 406 707 596 1936 1379 550 175 Wait 2170 | 19 491 8 . . 72 8 226 . . 7 126 . 77 62 715 41 . 35 120 53 87 23 Move 11146 | 15 989 101 244 140 965 1030 293 56 70 212 1507 72 139 254 342 312 652 522 1558 1144 398 131 Hop 8 | . . . . . . . . . . . . . . . . . . . 7 1 . . Pick Up 200 | 2 18 . 1 1 32 3 15 1 4 11 49 . . 3 3 2 7 . 30 16 2 . Fast Attach 118 | . 7 . . 1 9 1 2 . 3 . 21 . . . . . 7 3 33 22 9 . Attach 150 | . 3 . 1 . 7 1 9 2 . 14 42 . . 3 6 11 3 1 28 7 8 4 Detach 54 | . . . . . 2 1 . . 2 2 10 . . 1 1 3 2 1 12 4 10 3 Swap 149 | . 18 . 1 1 22 20 9 1 4 4 28 . 3 8 1 2 5 . 6 16 . . Drop 186 | . 17 . . 1 37 6 7 . 7 3 28 . . 2 . . 12 1 29 23 12 1 Fire 853 | 6 68 7 . . 117 81 54 . 14 48 205 3 11 12 9 35 7 33 83 54 6 . Melee 178 | . . . 4 . 1 22 15 . . 3 35 . . 1 . . 11 . 28 33 18 7 Ram . | . . . . . . . . . . . . . . . . . . . . . . . Kick 2 | . . . . . . . . . . . . . . . . . . . . 2 . . Crush 3 | . 1 . . 1 . . . . . . . . . . . . . . 1 . . . Escape Stasis 9 | . . . . . . . . . . . . . . . . . . . 1 2 . 6 Rewire 74 | . . . . . . . . . 1 . 70 . . . . . 1 . . 2 . . Trap . | . . . . . . . . . . . . . . . . . . . . . . . Miscellaneous . | . . . . . . . . . . . . . . . . . . . . . . . Route ------- -11/Scrapyard -10/Materials (discovered 6 exits: *Mat x3 / [*Min x2] / *Sub) -10/Mines (discovered 4 exits: *Mat x2 / *Exi / Sub) -10/Exiles -9/Mines -8/Materials (discovered 4 exits: *Fac x3 / Gar) -8/Garrison (discovered 3 exits: *Mat x3) -8/Materials -7/Factory (discovered 6 exits: Fac x3 / Low x2 / DSF) -7/DSF -6/Factory -6/Garrison (discovered 3 exits: *Fac x3) -6/Factory -6/Garrison -5/Factory (discovered 2 exits: *Upp x2) -5/Upper Caves -5/Upper Caves (discovered 2 exits: *Fac / *War) -5/Warlord -4/Proximity Caves -4/Factory -4/Extension -3/Research -3/Garrison History --------- Turn | Location | Event 14 | -11/Scrapyard | Discovered new exit (range 3) 58 | -11/Scrapyard | Entered Materials 315 | -10/Materials | Build established: Mutant 386 | -10/Materials | Discovered new exit (range 16) 627 | -10/Materials | Discovered new exit (range 16) 802 | -10/Materials | Build established: Scavenger-Mutant 940 | -10/Materials | Discovered new exit (range 10) 1051 | -10/Materials | Discovered new exit (range 13) 1336 | -10/Materials | Discovered new exit (range 14) 1488 | -10/Materials | Discovered new exit (range 12) 1628 | -10/Materials | Build established: Mutant 1723 | -10/Materials | Learned location of 1 exit from Recycling 1779 | -10/Materials | Learned 2 Mines zone layouts 1823 | -10/Materials | Learned location of 2 exits from Mines 1859 | -10/Materials | Learned location of 2 exits from Materials 1917 | -10/Materials | Learned Materials emergency access door positions 2153 | -10/Materials | Lost 3 parts (2n1u) 2257 | -10/Materials | Entered Mines 2258 | -10/Mines | Identified exit to Materials 2259 | -10/Mines | Identified exit to Subcaves 2259 | -10/Mines | Identified exit to Exiles 2264 | -10/Mines | Escorted by a lone wolf Derelict 2284 | -10/Mines | Learned location of Storage (-9) 2326 | -10/Mines | Core integrity fell below 50% 2423 | -10/Mines | Met a Derelict testing a Signal Generator 2440 | -10/Mines | Deemed a non-threat by the Exiles lab entrance 2446 | -10/Mines | Entered Exiles 2446 | -10/Exiles | Accompanied by 2 allies 2488 | -10/Exiles | Met 8R-AWN 2521 | -10/Exiles | Met EX-HEX 2568 | -10/Exiles | Met EX-BIN 2592 | -10/Exiles | Aligned with FarCom system 2593 | -10/Exiles | Given EX-Vault access code 2630 | -10/Exiles | Opened EX-Vault 2644 | -10/Exiles | Found 0b10 Alert Chip 2677 | -10/Exiles | Warned to stay clear of 0b10 Research branches 2723 | -10/Exiles | Met EX-DEC 2834 | -10/Exiles | Discovered new exit (range 10) 2846 | -10/Exiles | Left Exiles lab with 0b10 Alert Chip 2846 | -10/Exiles | Entered Mines 2846 | -9/Mines | Accompanied by 1 ally 2847 | -9/Mines | Identified exit to Materials 3077 | -9/Mines | Entered Materials 3077 | -8/Materials | Accompanied by 3 allies 3077 | -8/Materials | Evolved 4 slots: Propulsion x2, Utility x2 3078 | -8/Materials | Identified exit to Factory 3082 | -8/Materials | Led the pair of lost Derelicts to an unsafe place 3562 | -8/Materials | Build established: Scavenger-Mutant 4619 | -8/Materials | Learned Storage emergency access door positions 4679 | -8/Materials | Learned location of 3 exits from Factory 4691 | -8/Materials | Learned 12 Factory zone layouts 4694 | -8/Materials | Learned Factory emergency access door positions 4695 | -8/Materials | Learned Storage security intel 4698 | -8/Materials | Learned Storage non-interactive machine intel 5066 | -8/Materials | Identified exit to Garrison 5066 | -8/Materials | Entered Garrison 5109 | -8/Garrison | Triggered checkpoint 5122 | -8/Garrison | Garrison Relay disabled 5165 | -8/Garrison | Triggered checkpoint 5199 | -8/Garrison | Triggered checkpoint 5286 | -8/Garrison | Triggered checkpoint 5305 | -8/Garrison | Garrison Relay disabled 5442 | -8/Garrison | Triggered checkpoint 5464 | -8/Garrison | Triggered checkpoint 5557 | -8/Garrison | Triggered checkpoint 5642 | -8/Garrison | Garrison Relay disabled 5683 | -8/Garrison | Discovered new exit (range 14) 5702 | -8/Garrison | Identified exit to Materials 5837 | -8/Garrison | Discovered exit to Materials (range 10) 5871 | -8/Garrison | Triggered checkpoint 5922 | -8/Garrison | Triggered checkpoint 5955 | -8/Garrison | Garrison Relay disabled 6081 | -8/Garrison | Triggered checkpoint 6123 | -8/Garrison | Garrison Relay disabled 6218 | -8/Garrison | Discovered exit to Materials (range 14) 6307 | -8/Garrison | Found Powered Armor 6327 | -8/Garrison | Found Powered Armor 6704 | -8/Garrison | Phase Generator disabled 6953 | -8/Garrison | Garrison Relay disabled 7009 | -8/Garrison | Entered Materials 7409 | -8/Materials | First assault squad dispatched 7503 | -8/Materials | Garrison activated, responded to threat 7546 | -8/Materials | Core integrity fell below 50% 7578 | -8/Materials | Core integrity fell below 20% 7580 | -8/Materials | Destroyed 8 combat bots 7608 | -8/Materials | Lost 7 parts (1p4n1u1w) 7666 | -8/Materials | Garrison activated, responded to threat 7874 | -8/Materials | Discovered exit to Factory (range 16) 7936 | -8/Materials | Entered Factory 7936 | -7/Factory | Evolved 2 slots: Utility x1, Weapon x1 7937 | -7/Factory | Identified exit to Lower Caves 7938 | -7/Factory | Identified exit to Factory 8031 | -7/Factory | Identified exit to DSF 8031 | -7/Factory | Entered DSF 8074 | -7/DSF | Additional patrols routed to DSF 8080 | -7/DSF | Found Hvy. Reactive Plating 8122 | -7/DSF | Found Hvy. Reactive Plating 8180 | -7/DSF | Discovered exit to Factory (range 16) 8191 | -7/DSF | Sterilization system engaged 8211 | -7/DSF | Ambient heat levels rising (+10) 8226 | -7/DSF | Ambient heat levels rising (+10) 8239 | -7/DSF | Entered Factory 8239 | -6/Factory | Evolved 2 slots: Propulsion x1, Weapon x1 8341 | -6/Factory | Build established: Scavenger-Tank 8642 | -6/Factory | Identified exit to Garrison 8740 | -6/Factory | Lost 3 parts (1n1u1w) 8768 | -6/Factory | Garrison activated, responded to threat 8782 | -6/Factory | Garrison activated, responded to threat 8831 | -6/Factory | Lost 10 parts (1p4n1u4w) 8886 | -6/Factory | Entered Garrison 9028 | -6/Garrison | System corruption reached 10% 9217 | -6/Garrison | Triggered checkpoint 9259 | -6/Garrison | Garrison Relay disabled 9446 | -6/Garrison | Triggered checkpoint 9460 | -6/Garrison | Triggered checkpoint 9465 | -6/Garrison | Spotted B-75 Beast 9468 | -6/Garrison | Triggered checkpoint 9500 | -6/Garrison | Lost 3 allies 9503 | -6/Garrison | Destroyed B-75 Beast 9663 | -6/Garrison | Lost 13 parts (1p3n3u6w) 9784 | -6/Garrison | Triggered checkpoint 9927 | -6/Garrison | Spotted Executioner 9929 | -6/Garrison | Spotted Executioner 9940 | -6/Garrison | Destroyed Executioner 9954 | -6/Garrison | Destroyed Executioner 9975 | -6/Garrison | Destroyed 12 combat bots 9975 | -6/Garrison | Found Exp. Core Analyzer 9977 | -6/Garrison | Lost 5 parts (2n2u1w) 10059 | -6/Garrison | System corruption reached 30% 10066 | -6/Garrison | Core integrity fell below 50% 10205 | -6/Garrison | Build established: Scavenger-Skirmisher 10439 | -6/Garrison | Triggered checkpoint 10506 | -6/Garrison | Discovered new exit (range 8) 10697 | -6/Garrison | Garrison Relay disabled 10746 | -6/Garrison | Garrison Relay disabled 10883 | -6/Garrison | Triggered checkpoint 10917 | -6/Garrison | Garrison Relay disabled 11012 | -6/Garrison | Garrison Relay disabled 11015 | -6/Garrison | Triggered checkpoint 11077 | -6/Garrison | Discovered new exit (range 4) 11399 | -6/Garrison | Found Fusion Bomb Launcher 11449 | -6/Garrison | Build established: Scavenger-Tank 11655 | -6/Garrison | Attempted to access garrison exit controls, blocked by remote lockdown 11806 | -6/Garrison | Discovered new exit (range 7) 11816 | -6/Garrison | Attempted to access garrison exit controls, blocked by remote lockdown 11847 | -6/Garrison | Triggered checkpoint 11849 | -6/Garrison | Spotted B-75 Beast 11883 | -6/Garrison | Destroyed B-75 Beast 11896 | -6/Garrison | Lost 3 parts (1n2u) 11987 | -6/Garrison | Garrison Relay disabled 12236 | -6/Garrison | Found embedded Infiltrators 12488 | -6/Garrison | Entered Factory 12488 | -6/Factory | Accompanied by 7 allies 12543 | -6/Factory | Identified exit to DSF 12582 | -6/Factory | Garrison activated, responded to threat 12583 | -6/Factory | High security lockdown imminent 12613 | -6/Factory | Identified exit to Garrison 12613 | -6/Factory | Entered Garrison 12613 | -6/Garrison | Accompanied by 6 allies 12657 | -6/Garrison | Triggered checkpoint 12657 | -6/Garrison | Triggered checkpoint 12666 | -6/Garrison | Triggered checkpoint 12691 | -6/Garrison | Destroyed 8 combat bots 12741 | -6/Garrison | P-60 Hacker assimilated allied Soldier 5a 12759 | -6/Garrison | Triggered checkpoint 12876 | -6/Garrison | Triggered checkpoint 12929 | -6/Garrison | Discovered new exit (range 10) 12945 | -6/Garrison | Entered Factory 12945 | -5/Factory | Accompanied by 2 allies 12945 | -5/Factory | Evolved 2 slots: Power x1, Utility x1 13036 | -5/Factory | Repaired Imp. Heavy Treads 13182 | -5/Factory | Identified exit to Upper Caves 13468 | -5/Factory | Entered Upper Caves 13468 | -5/Upper Caves | Accompanied by 1 ally 13504 | -5/Upper Caves | Met a Warlord Commander 13505 | -5/Upper Caves | Learned location of Warlord (-5) 13506 | -5/Upper Caves | Warlord Commander delivered Encrypted Comm Array 13514 | -5/Upper Caves | Found Encrypted Comm Array 13515 | -5/Upper Caves | Lost 5 parts (1n2u2w) 13681 | -5/Upper Caves | Learned 4 Factory zone layouts 13842 | -5/Upper Caves | Discovered new exit (range 10) 14766 | -5/Upper Caves | Entered another Upper Caves area 14846 | -5/Upper Caves | Discovered new exit (range 11) 15007 | -5/Upper Caves | Attracted the attention of an 0b10 checkpoint 15335 | -5/Upper Caves | Lost 7 parts (1n2u4w) 15361 | -5/Upper Caves | Discovered new exit (range 10) 15427 | -5/Upper Caves | Entered Warlord 15603 | -5/Warlord | Build established: Mutant 15773 | -5/Warlord | Found Prototype Energy Gun 15866 | -5/Warlord | Found Prototype Device 16110 | -5/Warlord | Met Warlord 16135 | -5/Warlord | Warlord's base attacked by MAIN.C 16313 | -5/Warlord | Found Prototype Energy Cannon 16313 | -5/Warlord | Identified Vortex Cannon 16319 | -5/Warlord | Found Prototype Energy Cannon 16319 | -5/Warlord | Identified Vortex Driver 16323 | -5/Warlord | Found Vortex Driver 16334 | -5/Warlord | Found Vortex Cannon 16354 | -5/Warlord | Build established: Commander-Tank 16485 | -5/Warlord | Warlord forces counterattacked 16489 | -5/Warlord | Spotted Executioner 16540 | -5/Warlord | Spotted Striker 16548 | -5/Warlord | Spotted Executioner 16570 | -5/Warlord | Discovered new exit (range 15) 16601 | -5/Warlord | Entered Proximity Caves 16612 | -4/Proximity Caves | Lost 16 allies 16692 | -4/Proximity Caves | Spotter reported a threat 16785 | -4/Proximity Caves | Found Alien Artifact 16785 | -4/Proximity Caves | Identified Dimensional Node Initializer 16785 | -4/Proximity Caves | Initialized slip node 16810 | -4/Proximity Caves | Build established: Scavenger-Tank 17092 | -4/Proximity Caves | Attracted the attention of an 0b10 checkpoint 17386 | -4/Proximity Caves | Learned 4 Research zone layouts 17399 | -4/Proximity Caves | Discovered new exit (range 15) 17591 | -4/Proximity Caves | Entered Factory 17591 | -4/Factory | Evolved 2 slots: Propulsion x1, Weapon x1 17594 | -4/Factory | Identified Plasma Storm 18026 | -4/Factory | Lost 4 parts (1p2n1u) 18350 | -4/Factory | Build established: Scavenger-Mutant 18370 | -4/Factory | Lost 5 parts (1p2n2w) 18552 | -4/Factory | System corruption reached 10% 18683 | -4/Factory | Build established: Scavenger-Skirmisher 19430 | -4/Factory | Lost 3 parts (1p2w) 19635 | -4/Factory | Core integrity fell below 50% 19659 | -4/Factory | Found Prototype Processor 19659 | -4/Factory | Identified Exp. Signal Interpreter 19667 | -4/Factory | Lost 12 parts (5n2u5w) 19902 | -4/Factory | Build established: Mutant 19910 | -4/Factory | Lost 3 parts (2n1w) 19967 | -4/Factory | Discovered new exit (range 9) 20265 | -4/Factory | Entered Extension 20372 | -4/Extension | Build established: Scavenger-Scout 20908 | -4/Extension | Build established: Scavenger-Skirmisher 20996 | -4/Extension | Rescued a captive Derelict 21102 | -4/Extension | Lost 3 allies 21531 | -4/Extension | Spotted B-86 Titan 21536 | -4/Extension | Core integrity fell below 20% 21547 | -4/Extension | Allies destroyed B-86 Titan 21570 | -4/Extension | Spotted B-86 Titan 21604 | -4/Extension | Lost 3 allies 21623 | -4/Extension | Allies destroyed B-86 Titan 21652 | -4/Extension | Lost 7 parts (1p2n4w) 21724 | -4/Extension | Lost 7 parts (4n2u1w) 21922 | -4/Extension | Build established: Scavenger-Mutant 21986 | -4/Extension | Discovered new exit (range 3) 22009 | -4/Extension | Entered Research 22009 | -3/Research | Evolved 2 slots: Utility x2 22046 | -3/Research | Found Unknown Protection 22046 | -3/Research | Identified Imp. Powered Armor 22338 | -3/Research | Crushed by falling debris 22460 | -3/Research | Lost 5 parts (4n1u) 22469 | -3/Research | Identified exit to Garrison 22469 | -3/Research | Entered Garrison 22557 | -3/Garrison | Triggered checkpoint 22583 | -3/Garrison | Spotted B-86 Titan 22584 | -3/Garrison | Triggered checkpoint 22586 | -3/Garrison | Core integrity fell below 50% 22596 | -3/Garrison | Core integrity fell below 20% 22599 | -3/Garrison | Triggered checkpoint 22606 | -3/Garrison | System corruption reached 10% 22607 | -3/Garrison | Core destroyed Last Messages --------------- 22578_ Field strength at 24. 22579_ Stasis field depleted. 22581_ Dropped Hpw. Tractor Beam. 22584_ Beams of light sweep through the air. An alarm sounds. 22585_ C-45 Heavy ARC bursts open, deploying its payload. 22585_ G-73 Enforcer unfolds itself. 22585_ G-67 Veteran unfolds itself. 22585_ Critical hit (Burn: +37). 22588_ Knocked back. 22592_ Connecting with Garrison Terminal... >>Access(Emergency) Found 47 emergency access points. Map updated. 22594_ Hvy. Pick destroyed. 22596_ Imp. Hacking Suite destroyed. 22601_ System corrupted: Energy discharge (-26). 22605_ Y-72 Warden springs to life. 22607_ Slammed into Reinforced Barrier. Map ----- +----------------------------------------------------+ | | | | | | | | | | | | | | | | | | | | | ?????????????????????????????????????????????????? | | ?????????????????????????????????????????????????? | | ?????????????????????????????????????????????????? | | ?????????????????????????????????????????????????? | | ?????????????????????????????????????????????????? | | ?????????????????????????????????????????????????? | | ?????????????????????????????????????????????????? | | ?????????????????????????????????????????????????? | | ????????????????????????####?????????????????????? | | ????????????????????????#YY#?????l???????????????? | | ??????????????????????### +???l?????????????????? | | ??????????????????????#"# #?????????????????????? | | ??????????????????????#" #?????????????????????? | | ??????????????????????#" #?????????????????????? | | ???????????????????????" #?????????????????????? | | ????????????????????????#@ #?????????????????????? | | ????????????????????????# #?????????????????????? | | ????????????????????????# #?????????????????????? | | ????????????????????????# #?????????????????????? | | ????????????????????????# #?????????????????????? | | ??????????????????#!!!###s #?????????????????????? | | ??????????????????# ps#????????????+????????? | | ??????????????????#######s #?????????????????????? | | ????????????????????????# #?????????????????????? | | ????????????????????????# #?????????????????????? | | ????????????????????????#g #?????????????????????? | | ??????????????????????### s#?????????????????????? | | ??????????????????????# g s#?????????????????????? | | ??????????????????????+ s " ??+????+????????????? | | ??????????????????????# ###?????C?????????????? | | ??????????????????????### s#?????????????????????? | | ??????????????###+####### ##### ##?????+???????? | | #####+##?????## ?????????? | | #?????#T ?????????? | | #?????## ?????????? | | ##### #??????# #######++#############?????????? | | #???# #??????# #?????# #?????????????????????? | | #???# #??????# #?????# #?????????????????????? | | #???# !#??????# #?????# #?????????????????????? | | #???# #??????# +????? ?????????????????????? | +----------------------------------------------------+ Best States ------------- Heat Dissipation 95 Energy Generation 32 Energy Capacity 360 Matter Stores 300 Matter Capacity 300 Sight Range 16 Terrain Scan Density 10 Additional Mass Support 9 Armor Coverage 1000 Resistance: KI 40 Resistance: TH 15 Resistance: EM 15 Propulsion Shielding 66 Weapon Cycling 20 Phase Shifting 10 Evasion (%) 62 Core Analysis 8 Recoil Reduction 5 Matter Filtering 50 Offensive Hacking 20 Defensive Hacking 12 Item Schematics ----------------- Antigrav Array | -4/Extension | Hacked Robot Schematics ------------------ None Fabricated ------------ Nothing Repaired ---------- Imp. Heavy Treads | 11% | -5/Factory Studied --------- None Alien Tech Used ----------------- Dimensional Node Initializer Achievements -------------- About That Survey... Bullet Installation Drive-By Hot Goods Oh No You Don't! Physics Hates This One Trick Challenges ------------ None Game ------ Seed EfficiencyReinforcedThrower Manual? 0 Play Time 03:55:04 Cumulative 77.6 hours Start 2026.09.24 @ 01:41:06 End 2026.09.24 @ 05:48:59 Sessions 1 Manual Loads 0 Difficulty Rogue Special Mode None Game No. 67 Rogue 64 Adventurer 3 Explorer 0 Win Type - Total 3 Types 2/1/0/0/0/0/0/0/0/0 Lore% 58 Gallery% 49 Achievement% 48 Wizard Run 0 Options --------- Layout 1 ASCII 0 Keyboard 0 Movement Mouse Keybinds 0 Fullscreen 1 Font 32/SmallcapsGlow Map View 50x35 Zoom Use 0% Tactical HUD 1 Map Filters NONE Filters NONE Steam 1 RUN: 87765890-f21f-4820-849d-c251b507e54d